[Event "Nordic Chess-ch 2019"]
[Site "Sarpsborg"]
[Date "2019.06.22"]
[Round "2.4"]
[White "Urkedal, Frode Olav Olsen"]
[Black "Vitenberg, Noam Aviv"]
[Result "1-0"]
[ECO "C16"]
[WhiteElo "2525"]
[BlackElo "2256"]
[Annotator "ChessBase"]
[PlyCount "83"]
[EventDate "2019.06.21"]
[EventType "swiss"]
[EventCountry "NOR"]
[SourceTitle "playchess.com"]
[Source "ChessBase"]
[SourceQuality "1"]
[TimeControl "40/5400+30:1800+30"]

1. e4 {[%emt 0:01:28]} e6 {[%emt 0:01:15]} 2. d4 {[%emt 0:00:11]} d5 {[%emt 0:00:11]} 3. Nc3 {[%emt 0:00:03]} Bb4 {[%emt 0:00:43]} 4. e5 {[%emt 0:00:09]} Ne7 {[%emt 0:00:27]} 5. a3 {[%emt 0:00:06]} Bxc3+ {[%emt 0:00:10]} 6. bxc3 {[%emt 0:00:04]} b6 {[%emt 0:00:15]} 7. Qg4 {[%emt 0:00:28]} Kf8 {[%emt 0:00:32]} 8. Nh3 {[%emt 0:01:51]} Ba6 {[%emt 0:05:33]} 9. Bxa6 {[%emt 0:00:55]} Nxa6 {[%emt 0:00:08]} 10. Nf4 {[%emt 0:02:28]} Nf5 {[%emt 0:03:59]} 11. h4 {[%emt 0:03:06]} c5 {[%emt 0:11:51]} 12. Qe2 {[%emt 0:03:09]} Nb8 {[%emt 0:08:22]} 13. h5 {[%emt 0:01:06]} h6 {[%emt 0:06:36]} 14. g4 {[%emt 0:07:19]} Ne7 {[%emt 0:00:32]} 15. Be3 {[%emt 0:04:33]} Nbc6 {[%emt 0:03:17]} 16. Nd3 {[%emt 0:03:43]} Na5 {[%emt 0:06:28]} 17. dxc5 {[%emt 0:16:59]} Qc7 {[%emt 0:04:26]} 18. O-O {[%emt 0:03:41]} Nc4 {[%emt 0:11:47]} 19. Bd4 {[%emt 0:01:04]} Kg8 {[%emt 0:03:13]} 20. f4 {[%emt 0:01:49]} bxc5 {[%emt 0:06:02]} 21. Nxc5 {[%emt 0:01:11]} Nc6 {[%emt 0:03:13]} 22. Rab1 {[%emt 0:12:32]} Qa5 {[%emt 0:01:37]} 23. Qd3 {[%emt 0:03:58]} Rc8 {[%emt 0:05:21]} 24. a4 {[%emt 0:05:58]} Qd8 {[%emt 0:02:30]} 25. Rf2 {[%emt 0:03:05]} Rb8 {[%emt 0:02:46]} 26. Rbf1 {[%emt 0:02:35]} Qa5 {[%emt 0:03:56]} 27. Re2 {[%emt 0:04:00]} Nb2 {[%emt 0:01:39]} 28. Qe3 {[%emt 0:05:08]} Nc4 {[%emt 0:01:36]} 29. Qf2 {[%emt 0:00:33]} Rc8 {[%emt 0:03:29]} 30. f5 {[%emt 0:02:20]} N6xe5 {[%emt 0:00:42]} 31. fxe6 {[%emt 0:00:07]} f6 {[%emt 0:00:26]} 32. Nd7 {[%emt 0:01:41]} Qd8 {[%emt 0:00:24]} 33. Nxe5 {[%emt 0:00:34]} Nxe5 {[%emt 0:00:12]} 34. Bxe5 {[%emt 0:01:02]} fxe5 {[%emt 0:00:08]} 35. Qf7+ {[%emt 0:00:13]} Kh7 {[%emt 0:00:04]} 36. Qg6+ {[%emt 0:00:22]} Kg8 {[%emt 0:00:04]} 37. Rf7 {[%emt 0:00:26]} Rh7 {[%emt 0:00:30]} 38. e7 {[%emt 0:00:09]} Qb6+ {[%emt 0:01:28]} 39. Ref2 {[%emt 0:00:06]} Qc5 {[%emt 0:01:24]} 40. Qe6 {[%emt 0:01:09]} Rh8 {[%emt 0:00:59]} 41. Rf8+ {[%emt 0:30:21]} Kh7 {[%emt 0:30:08]} 42. Qg6# {[%emt 0:09:18]} 1-0

[Event "Nordic Chess-ch 2019"]
[Site "Sarpsborg"]
[Date "2019.06.22"]
[Round "2.5"]
[White "Haugli, Petter"]
[Black "Notkevich, Benjamin Arvola"]
[Result "0-1"]
[ECO "A37"]
[WhiteElo "2223"]
[BlackElo "2485"]
[Annotator "ChessBase"]
[PlyCount "36"]
[EventDate "2019.06.21"]
[EventType "swiss"]
[EventCountry "NOR"]
[SourceTitle "playchess.com"]
[Source "ChessBase"]
[SourceQuality "1"]
[TimeControl "40/5400+30:1800+30"]

1. c4 {[%emt 0:00:00]} c5 {[%emt 0:00:00]} 2. Nc3 {[%emt 0:00:00]} g6 {[%emt 0:00:00]} 3. g3 {[%emt 0:00:00]} Bg7 {[%emt 0:00:00]} 4. Bg2 {[%emt 0:00:03]} Nc6 {[%emt 0:00:00]} 5. Nf3 {[%emt 0:00:06]} e6 {[%emt 0:00:20]} 6. d4 {[%emt 0:00:12]} cxd4 {[%emt 0:00:06]} 7. Nb5 {[%emt 0:00:06]} d5 {[%emt 0:00:10]} 8. cxd5 {[%emt 0:00:09]} Qa5+ {[%emt 0:00:09]} 9. Nd2 {[%emt 0:00:13]} exd5 {[%emt 0:00:07]} 10. Nd6+ {[%emt 0:02:22]} Kf8 {[%emt 0:00:06]} 11. Qb3 {[%emt 0:23:20]} Nge7 {[%emt 0:07:39]} 12. O-O {[%emt 0:00:31]} Be6 {[%emt 0:15:50]} 13. Nxb7 {[%emt 0:14:08]} Qb6 {[%emt 0:00:08]} 14. Qxb6 {[%emt 0:01:03]} axb6 {[%emt 0:00:06]} 15. Nf3 {[%emt 0:00:06]} Ke8 {[%emt 0:04:01]} 16. a3 {[%emt 0:14:21]} Kd7 {[%emt 0:01:41]} 17. Bf4 {[%emt 0:00:05]} h6 {[%emt 0:00:57]} 18. h4 {[%emt 0:00:52]} Nc8 {[%emt 0:05:30]} 0-1

[Event "Nordic Chess-ch 2019"]
[Site "Sarpsborg"]
[Date "2019.06.22"]
[Round "2.6"]
[White "Holm, Kristian Stuvik"]
[Black "Thorn, Eric"]
[Result "0-1"]
[ECO "A18"]
[WhiteElo "2474"]
[BlackElo "2230"]
[Annotator "ChessBase"]
[PlyCount "92"]
[EventDate "2019.06.21"]
[EventType "swiss"]
[EventCountry "NOR"]
[SourceTitle "playchess.com"]
[Source "ChessBase"]
[SourceQuality "1"]
[TimeControl "40/5400+30:1800+30"]

1. c4 {[%emt 0:01:14]} Nf6 {[%emt 0:00:08]} 2. Nc3 {[%emt 0:00:10]} e6 {[%emt 0:00:27]} 3. e4 {[%emt 0:00:42]} d5 {[%emt 0:01:27]} 4. e5 {[%emt 0:00:10]} d4 {[%emt 0:00:55]} 5. exf6 {[%emt 0:00:07]} dxc3 {[%emt 0:00:05]} 6. bxc3 {[%emt 0:00:06]} Qxf6 {[%emt 0:00:06]} 7. d4 {[%emt 0:00:24]} c5 {[%emt 0:03:40]} 8. Nf3 {[%emt 0:00:33]} cxd4 {[%emt 0:01:48]} 9. Bg5 {[%emt 0:00:24]} Qf5 {[%emt 0:00:19]} 10. cxd4 {[%emt 0:00:06]} Bb4+ {[%emt 0:00:47]} 11. Bd2 {[%emt 0:00:15]} Qa5 {[%emt 0:08:18]} 12. Bd3 {[%emt 0:13:31]} Nc6 {[%emt 0:03:09]} 13. Be4 {[%emt 0:07:30]} Bd7 {[%emt 0:06:15]} 14. Rb1 {[%emt 0:08:16]} Bxd2+ {[%emt 0:05:58]} 15. Qxd2 {[%emt 0:00:18]} O-O-O {[%emt 0:09:40]} 16. Qxa5 {[%emt 0:11:06]} Nxa5 {[%emt 0:00:18]} 17. Ke2 {[%emt 0:00:05]} f5 {[%emt 0:14:24]} 18. Bd3 {[%emt 0:04:30]} Bc6 {[%emt 0:00:24]} 19. Rhe1 {[%emt 0:08:28]} Bxf3+ 20. Kxf3 {[%emt 0:00:21]} Rxd4 {[%emt 0:03:37]} 21. Bf1 {[%emt 0:00:18]} Re8 {[%emt 0:01:29]} 22. Rb5 {[%emt 0:02:22]} Nc6 {[%emt 0:01:10]} 23. Rxf5 {[%emt 0:02:57]} Rd2 {[%emt 0:20:15]} 24. Rf7 {[%emt 0:02:50]} Rxa2 {[%emt 0:08:36]} 25. g4 {[%emt 0:10:11]} a5 {[%emt 0:02:10]} 26. Kg3 {[%emt 0:01:28]} Re7 {[%emt 0:03:34]} 27. Rxe7 {[%emt 0:00:58]} Nxe7 {[%emt 0:00:03]} 28. Rxe6 {[%emt 0:00:08]} Kd7 {[%emt 0:00:07]} 29. Rb6 {[%emt 0:08:26]} Kc7 {[%emt 0:00:15]} 30. c5 {[%emt 0:00:52]} Rc2 {[%emt 0:01:15]} 31. Bg2 {[%emt 0:03:31]} Rc3+ {[%emt 0:00:06]} 32. Kf4 {[%emt 0:02:30]} Ng6+ {[%emt 0:01:05]} 33. Ke4 {[%emt 0:00:21]} Rxc5 {[%emt 0:00:12]} 34. Rb2 {[%emt 0:00:50]} b5 {[%emt 0:00:39]} 35. Bf1 {[%emt 0:00:57]} Kb6 {[%emt 0:01:58]} 36. f4 {[%emt 0:00:11]} a4 {[%emt 0:00:49]} 37. f5 {[%emt 0:00:03]} Ne5 {[%emt 0:00:41]} 38. g5 {[%emt 0:00:19]} Nf7 {[%emt 0:00:45]} 39. Kf4 {[%emt 0:01:02]} a3 {[%emt 0:01:45]} 40. Rd2 {[%emt 0:00:01]} b4 {[%emt 0:00:45]} 41. Rd4 {[%emt 0:30:37]} a2 {[%emt 0:05:53]} 42. Rxb4+ {[%emt 0:00:00]} Ka5 {[%emt 0:00:04]} 43. Rb8 {[%emt 0:00:00]} Ka4 {[%emt 0:00:06]} 44. Bd3 {[%emt 0:00:00]} a1=Q {[%emt 0:07:19]} 45. Bc2+ {[%emt 0:00:00]} Ka3 {[%emt 0:00:04]} 46. Rb3+ {[%emt 0:00:00]} Ka2 {[%emt 0:00:04]} 0-1

[Event "Nordic Chess-ch 2019"]
[Site "Sarpsborg"]
[Date "2019.06.22"]
[Round "2.7"]
[White "Abdrlauf, Elham"]
[Black "Gretarsson, Helgi Ass"]
[Result "1/2-1/2"]
[ECO "A65"]
[WhiteElo "2207"]
[BlackElo "2433"]
[Annotator "NA"]
[PlyCount "26"]
[EventDate "2019.06.21"]
[EventType "swiss"]
[EventCountry "NOR"]
[SourceTitle "playchess.com"]
[Source "ChessBase"]
[SourceQuality "1"]
[TimeControl "40/5400+30:1800+30"]

1. e4 {[%emt 0:00:00]} g6 {[%emt 0:00:00]} 2. d4 {[%emt 0:00:00]} Bg7 {[%emt 0:00:00]} 3. c4 {[%emt 0:00:00]} c5 {[%emt 0:06:39]} 4. d5 {[%emt 0:01:30]} d6 {[%emt 0:00:02]} 5. Nc3 {[%emt 0:01:05]} Nf6 {[%emt 0:09:12]} 6. Nge2 {[%emt 0:02:42]} O-O {[%emt 0:02:24]} 7. f3 {[%emt 0:00:59]} e6 {[%emt 0:05:25]} 8. Ng3 {[%emt 0:15:45]} exd5 {[%emt 0:02:22]} 9. cxd5 {[%emt 0:00:08]} a6 {[%emt 0:00:50]} 10. a4 {[%emt 0:00:14]} Nbd7 {[%emt 0:02:13]} 11. Be2 {[%emt 0:00:54]} Qc7 {[%emt 0:22:53]} 12. Be3 {[%emt 0:05:49]} h5 {[%emt 0:01:57]} 13. O-O {[%emt 0:00:10]} Re8 {[%emt 0:02:53]} 1/2-1/2

[Event "Nordic Chess-ch 2019"]
[Site "Sarpsborg"]
[Date "2019.06.22"]
[Round "2.8"]
[White "Ogaard, Leif"]
[Black "Sjoberg, Isak"]
[Result "1/2-1/2"]
[ECO "E61"]
[WhiteElo "2385"]
[BlackElo "2222"]
[Annotator "NA"]
[PlyCount "90"]
[EventDate "2019.06.21"]
[EventType "swiss"]
[EventCountry "NOR"]
[SourceTitle "playchess.com"]
[Source "ChessBase"]
[SourceQuality "1"]
[TimeControl "40/5400+30:1800+30"]

1. Nf3 {[%emt 0:00:00]} Nf6 {[%emt 0:02:19]} 2. c4 {[%emt 0:00:00]} g6 {[%emt 0:00:11]} 3. Nc3 {[%emt 0:00:00]} Bg7 {[%emt 0:00:54]} 4. d4 {[%emt 0:00:05]} d6 {[%emt 0:00:52]} 5. Bf4 {[%emt 0:00:24]} O-O {[%emt 0:05:24]} 6. e3 {[%emt 0:00:08]} Nbd7 {[%emt 0:02:40]} 7. h3 {[%emt 0:00:36]} Nh5 {[%emt 0:07:47]} 8. Bh2 {[%emt 0:01:41]} e5 {[%emt 0:02:46]} 9. Be2 {[%emt 0:02:26]} exd4 {[%emt 0:02:33]} 10. Nxd4 {[%emt 0:00:46]} Nhf6 {[%emt 0:02:00]} 11. O-O {[%emt 0:00:19]} Re8 {[%emt 0:00:28]} 12. Qc2 {[%emt 0:01:36]} Ne5 {[%emt 0:03:56]} 13. Rad1 {[%emt 0:02:58]} Bd7 {[%emt 0:06:43]} 14. Kh1 {[%emt 0:09:30]} Qc8 {[%emt 0:02:25]} 15. e4 {[%emt 0:04:48]} Nc6 {[%emt 0:02:55]} 16. Nf3 {[%emt 0:03:44]} Nxe4 {[%emt 0:10:06]} 17. Nxe4 {[%emt 0:01:24]} Bf5 {[%emt 0:00:04]} 18. Nfg5 {[%emt 0:05:36]} h6 {[%emt 0:03:55]} 19. g4 {[%emt 0:00:12]} hxg5 {[%emt 0:01:17]} 20. gxf5 {[%emt 0:00:10]} Qxf5 {[%emt 0:01:02]} 21. f3 {[%emt 0:01:14]} Nd4 {[%emt 0:40:13]} 22. Rxd4 {[%emt 0:23:51]} Bxd4 {[%emt 0:00:00]} 23. Bd3 {[%emt 0:02:18]} Qxh3 {[%emt 0:00:00]} 24. Nxg5 {[%emt 0:00:29]} Qh4 {[%emt 0:00:00]} 25. f4 {[%emt 0:06:53]} Re1 {[%emt 0:00:00]} 26. Rxe1 {[%emt 0:01:00]} Qxe1+ {[%emt 0:00:00]} 27. Kg2 {[%emt 0:00:05]} Bg7 {[%emt 0:03:00]} 28. Bg3 {[%emt 0:07:14]} Qa1 {[%emt 0:00:00]} 29. b3 {[%emt 0:01:25]} Re8 {[%emt 0:00:00]} 30. Nxf7 {[%emt 0:05:05]} Kxf7 {[%emt 0:00:00]} 31. Bxg6+ {[%emt 0:00:09]} Kf8 {[%emt 0:00:00]} 32. Bxe8 {[%emt 0:00:40]} Kxe8 {[%emt 0:00:00]} 33. Qe4+ {[%emt 0:06:17]} Kf8 {[%emt 0:00:00]} 34. Qxb7 {[%emt 0:00:39]} Qxa2+ {[%emt 0:00:00]} 35. Kh3 {[%emt 0:00:13]} Qa5 {[%emt 0:00:00]} 36. Qc8+ {[%emt 0:00:19]} Kf7 {[%emt 0:00:00]} 37. f5 {[%emt 0:00:24]} Qc5 {[%emt 0:00:00]} 38. Qe6+ {[%emt 0:01:02]} Kf8 {[%emt 0:00:00]} 39. f6 {[%emt 0:00:35]} Qh5+ {[%emt 0:00:00]} 40. Kg2 {[%emt 0:00:12]} Bh6 {[%emt 0:00:00]} 41. Qe7+ {[%emt 0:37:54]} Kg8 {[%emt 0:23:30]} 42. Qd8+ {[%emt 0:00:37]} Bf8 {[%emt 0:01:55]} 43. Qxc7 {[%emt 0:02:17]} Qe2+ {[%emt 0:00:05]} 44. Bf2 {[%emt 0:01:21]} Qg4+ {[%emt 0:00:26]} 45. Kh2 {[%emt 0:00:22]} Qh5+ {[%emt 0:00:31]} 1/2-1/2

[Event "Nordic Chess-ch 2019"]
[Site "Sarpsborg"]
[Date "2019.06.22"]
[Round "2.9"]
[White "Kvaloy, Aksel Bu"]
[Black "Lindgren, Philip"]
[Result "1/2-1/2"]
[ECO "B90"]
[WhiteElo "2138"]
[BlackElo "2384"]
[Annotator "NA"]
[PlyCount "54"]
[EventDate "2019.06.21"]
[EventType "swiss"]
[EventCountry "NOR"]
[SourceTitle "playchess.com"]
[Source "ChessBase"]
[SourceQuality "1"]
[TimeControl "40/5400+30:1800+30"]

1. e4 {[%emt 0:00:00]} c5 {[%emt 0:01:39]} 2. Nf3 {[%emt 0:00:00]} d6 {[%emt 0:00:07]} 3. d4 {[%emt 0:00:01]} cxd4 {[%emt 0:00:05]} 4. Nxd4 {[%emt 0:00:11]} Nf6 {[%emt 0:00:12]} 5. Nc3 {[%emt 0:00:06]} a6 {[%emt 0:00:19]} 6. Be3 {[%emt 0:00:38]} e5 {[%emt 0:02:43]} 7. Nb3 {[%emt 0:00:15]} Be6 {[%emt 0:02:41]} 8. f3 {[%emt 0:00:11]} Nbd7 {[%emt 0:02:04]} 9. Qd2 {[%emt 0:02:11]} h5 {[%emt 0:03:35]} 10. Nd5 {[%emt 0:01:04]} Nxd5 {[%emt 0:06:42]} 11. exd5 {[%emt 0:00:11]} Bf5 {[%emt 0:00:05]} 12. Be2 {[%emt 0:12:31]} Be7 {[%emt 0:03:20]} 13. Na5 {[%emt 0:04:36]} Qc7 {[%emt 0:06:54]} 14. c4 {[%emt 0:02:34]} O-O {[%emt 0:11:00]} 15. O-O {[%emt 0:02:27]} Bg6 {[%emt 0:05:24]} 16. b4 {[%emt 0:04:11]} f5 {[%emt 0:05:34]} 17. Bf2 {[%emt 0:02:21]} b6 {[%emt 0:06:54]} 18. Nc6 {[%emt 0:01:59]} Bf6 {[%emt 0:00:15]} 19. Rac1 {[%emt 0:00:57]} Bf7 {[%emt 0:06:19]} 20. a4 {[%emt 0:08:52]} a5 {[%emt 0:04:36]} 21. bxa5 {[%emt 0:10:02]} bxa5 {[%emt 0:00:08]} 22. Rb1 {[%emt 0:01:23]} Nc5 {[%emt 0:06:18]} 23. Rb5 {[%emt 0:03:53]} Be8 {[%emt 0:04:02]} 24. Rfb1 {[%emt 0:12:27]} Bxc6 {[%emt 0:02:14]} 25. dxc6 {[%emt 0:01:58]} Qxc6 {[%emt 0:00:26]} 26. Rb6 {[%emt 0:02:10]} Qc7 {[%emt 0:05:04]} 27. Rxd6 {[%emt 0:02:25]} Kh8 {[%emt 0:06:45]} 1/2-1/2

[Event "Nordic Chess-ch 2019"]
[Site "Sarpsborg"]
[Date "2019.06.22"]
[Round "2.10"]
[White "Getz, Nicolai"]
[Black "Ptacnikova, Lenka"]
[Result "1-0"]
[ECO "A05"]
[WhiteElo "2380"]
[BlackElo "2145"]
[Annotator "NA"]
[PlyCount "77"]
[EventDate "2019.06.21"]
[EventType "swiss"]
[EventCountry "NOR"]
[SourceTitle "playchess.com"]
[Source "ChessBase"]
[SourceQuality "1"]
[TimeControl "40/5400+30:1800+30"]

1. Nf3 {[%emt 0:00:00]} c5 {[%emt 0:00:09]} 2. g3 {[%emt 0:00:10]} g6 {[%emt 0:00:43]} 3. Bg2 {[%emt 0:00:28]} Bg7 {[%emt 0:00:05]} 4. O-O {[%emt 0:00:30]} Nf6 {[%emt 0:03:13]} 5. d3 {[%emt 0:00:33]} Nc6 {[%emt 0:02:55]} 6. Nc3 {[%emt 0:00:54]} O-O {[%emt 0:00:49]} 7. a3 {[%emt 0:01:07]} d6 {[%emt 0:02:28]} 8. Rb1 {[%emt 0:02:24]} a5 {[%emt 0:02:00]} 9. a4 {[%emt 0:04:37]} Bg4 {[%emt 0:07:17]} 10. h3 {[%emt 0:03:20]} Bd7 {[%emt 0:00:14]} 11. Nd2 {[%emt 0:01:17]} Rb8 {[%emt 0:03:11]} 12. Nc4 {[%emt 0:03:07]} Nb4 {[%emt 0:11:53]} 13. Nb5 {[%emt 0:10:43]} Bc6 {[%emt 0:07:40]} 14. c3 {[%emt 0:06:18]} Bxg2 {[%emt 0:00:55]} 15. Kxg2 {[%emt 0:00:07]} Nc6 {[%emt 0:00:41]} 16. e4 {[%emt 0:02:58]} d5 {[%emt 0:10:18]} 17. exd5 {[%emt 0:00:17]} Qxd5+ {[%emt 0:00:28]} 18. Qf3 {[%emt 0:00:07]} Qxf3+ {[%emt 0:02:37]} 19. Kxf3 {[%emt 0:00:08]} Nd5 {[%emt 0:00:24]} 20. Be3 {[%emt 0:10:16]} b6 {[%emt 0:07:38]} 21. Rbd1 {[%emt 0:01:57]} e5 {[%emt 0:04:28]} 22. Bc1 {[%emt 0:00:18]} Rfd8 {[%emt 0:00:43]} 23. h4 {[%emt 0:04:20]} h5 {[%emt 0:04:19]} 24. Bg5 {[%emt 0:01:12]} Rd7 {[%emt 0:00:20]} 25. Rfe1 {[%emt 0:00:08]} f6 {[%emt 0:09:09]} 26. Bc1 {[%emt 0:00:19]} f5 {[%emt 0:00:11]} 27. Kg2 {[%emt 0:01:27]} Bf6 {[%emt 0:04:26]} 28. Re2 {[%emt 0:05:30]} Rbd8 {[%emt 0:06:19]} 29. Rde1 {[%emt 0:01:07]} Nde7 {[%emt 0:01:22]} 30. Bg5 {[%emt 0:00:45]} Bg7 {[%emt 0:03:07]} 31. f4 {[%emt 0:15:30]} Rxd3 {[%emt 0:00:53]} 32. fxe5 {[%emt 0:01:20]} Rb8 {[%emt 0:02:25]} 33. e6 {[%emt 0:00:16]} Kf8 {[%emt 0:00:22]} 34. Bf4 {[%emt 0:00:37]} Rb7 {[%emt 0:00:52]} 35. Rd2 {[%emt 0:05:49]} Rxd2+ {[%emt 0:00:39]} 36. Bxd2 {[%emt 0:02:44]} Nd5 {[%emt 0:00:29]} 37. Bg5 {[%emt 0:00:10]} Bf6 {[%emt 0:01:10]} 38. Ncd6 {[%emt 0:01:31]} Re7 {[%emt 0:00:56]} 39. c4 {[%emt 0:00:27]} 1-0

[Event "Nordic Chess-ch 2019"]
[Site "Sarpsborg"]
[Date "2019.06.22"]
[Round "2.11"]
[White "Neretljak, Nedzad"]
[Black "Rydstrom, Tom"]
[Result "0-1"]
[ECO "C55"]
[WhiteElo "2114"]
[BlackElo "2370"]
[Annotator "ChessBase"]
[PlyCount "108"]
[EventDate "2019.06.21"]
[EventType "swiss"]
[EventCountry "NOR"]
[SourceTitle "playchess.com"]
[Source "ChessBase"]
[SourceQuality "1"]
[TimeControl "40/5400+30:1800+30"]

1. e4 {[%emt 0:00:00]} e5 {[%emt 0:01:35]} 2. Nf3 {[%emt 0:00:00]} Nc6 {[%emt 0:00:05]} 3. Bc4 {[%emt 0:00:00]} Nf6 {[%emt 0:01:15]} 4. d3 {[%emt 0:01:23]} h6 {[%emt 0:00:06]} 5. a4 {[%emt 0:00:34]} d6 {[%emt 0:01:36]} 6. Nbd2 {[%emt 0:00:14]} g6 {[%emt 0:03:25]} 7. Nf1 {[%emt 0:00:54]} Bg7 {[%emt 0:00:08]} 8. Ng3 {[%emt 0:05:10]} O-O {[%emt 0:00:26]} 9. c3 {[%emt 0:00:38]} Kh7 {[%emt 0:19:05]} 10. b4 {[%emt 0:05:22]} a6 {[%emt 0:05:28]} 11. Ra2 {[%emt 0:00:48]} d5 {[%emt 0:05:16]} 12. Bb3 {[%emt 0:04:08]} Be6 {[%emt 0:00:09]} 13. h4 {[%emt 0:02:58]} Kg8 {[%emt 0:22:39]} 14. Rd2 {[%emt 0:10:36]} Qe7 {[%emt 0:13:47]} 15. h5 {[%emt 0:02:21]} Rad8 {[%emt 0:01:33]} 16. hxg6 {[%emt 0:02:25]} fxg6 {[%emt 0:00:34]} 17. Nh4 {[%emt 0:07:51]} Qf7 {[%emt 0:00:18]} 18. O-O {[%emt 0:06:02]} Kh7 {[%emt 0:02:09]} 19. Ba3 {[%emt 0:06:52]} b5 {[%emt 0:01:36]} 20. axb5 {[%emt 0:00:43]} axb5 {[%emt 0:00:02]} 21. Qe2 {[%emt 0:06:16]} Bg4 {[%emt 0:04:46]} 22. f3 {[%emt 0:01:19]} Be6 {[%emt 0:00:07]} 23. d4 {[%emt 0:05:50]} dxe4 {[%emt 0:00:51]} 24. Bxe6 {[%emt 0:00:20]} Qxe6 {[%emt 0:00:04]} 25. dxe5 {[%emt 0:07:19]} Rxd2 {[%emt 0:01:02]} 26. Qxd2 {[%emt 0:00:12]} Qxe5 {[%emt 0:00:15]} 27. f4 {[%emt 0:00:13]} Qd6 {[%emt 0:00:53]} 28. Qe1 {[%emt 0:02:55]} Re8 {[%emt 0:00:26]} 29. f5 {[%emt 0:00:40]} g5 {[%emt 0:00:19]} 30. Ng6 {[%emt 0:00:10]} Qd3 {[%emt 0:00:32]} 31. Bb2 {[%emt 0:04:15]} Nd5 {[%emt 0:03:22]} 32. Nh5 {[%emt 0:00:17]} Bf6 {[%emt 0:02:58]} 33. Rf3 {[%emt 0:04:12]} Qc4 {[%emt 0:01:55]} 34. Rh3 {[%emt 0:00:44]} e3 {[%emt 0:00:49]} 35. Nxf6+ {[%emt 0:02:11]} Nxf6 {[%emt 0:00:02]} 36. Rxe3 {[%emt 0:00:11]} Rxe3 {[%emt 0:01:05]} 37. Qxe3 {[%emt 0:00:06]} Qd5 {[%emt 0:00:41]} 38. Nf8+ {[%emt 0:04:54]} Kg8 {[%emt 0:01:24]} 39. Qe6+ {[%emt 0:00:37]} Qxe6 {[%emt 0:00:31]} 40. Nxe6 {[%emt 0:00:07]} Nd5 {[%emt 0:00:15]} 41. Kf2 {[%emt 0:32:04]} Ne5 {[%emt 0:34:44]} 42. Ke2 {[%emt 0:00:00]} Kf7 {[%emt 0:00:00]} 43. g3 {[%emt 0:00:00]} Nc4 {[%emt 0:00:00]} 44. Bc1 {[%emt 0:00:00]} Kf6 {[%emt 0:00:00]} 45. Nd4 {[%emt 0:00:00]} Nd6 {[%emt 0:00:00]} 46. Bd2 {[%emt 0:00:00]} h5 {[%emt 0:00:00]} 47. Be1 {[%emt 0:00:00]} Ne7 {[%emt 0:00:00]} 48. Bf2 {[%emt 0:03:23]} Nexf5 {[%emt 0:00:00]} 49. Kd3 {[%emt 0:00:34]} Nxd4 {[%emt 0:00:00]} 50. Kxd4 {[%emt 0:00:31]} Kf5 {[%emt 0:00:00]} 51. Be1 {[%emt 0:01:48]} Kg4 {[%emt 0:00:00]} 52. Kd5 {[%emt 0:03:03]} Kf3 {[%emt 0:00:00]} 53. Bd2 {[%emt 0:00:42]} Ne4 {[%emt 0:00:37]} 54. Be1 {[%emt 0:00:40]} Nxg3 {[%emt 0:00:40]} 0-1

[Event "Nordic Chess-ch 2019"]
[Site "Sarpsborg"]
[Date "2019.06.22"]
[Round "2.12"]
[White "Wahlund, Max"]
[Black "Vestby-Ellingsen, Mads"]
[Result "0-1"]
[ECO "A62"]
[WhiteElo "2103"]
[BlackElo "2345"]
[Annotator "ChessBase"]
[PlyCount "130"]
[EventDate "2019.06.21"]
[EventType "swiss"]
[EventCountry "NOR"]
[SourceTitle "playchess.com"]
[Source "ChessBase"]
[SourceQuality "1"]
[TimeControl "40/5400+30:1800+30"]

1. d4 {[%emt 0:00:00]} Nf6 {[%emt 0:00:00]} 2. c4 {[%emt 0:00:00]} e6 {[%emt 0:00:00]} 3. g3 {[%emt 0:00:00]} c5 {[%emt 0:00:01]} 4. d5 {[%emt 0:00:00]} exd5 {[%emt 0:00:07]} 5. cxd5 {[%emt 0:00:00]} d6 {[%emt 0:00:11]} 6. Nf3 {[%emt 0:01:33]} g6 {[%emt 0:00:14]} 7. Nc3 {[%emt 0:00:22]} Bg7 {[%emt 0:00:12]} 8. Bg2 {[%emt 0:00:03]} O-O {[%emt 0:00:14]} 9. O-O {[%emt 0:01:58]} Re8 {[%emt 0:00:12]} 10. Bf4 {[%emt 0:01:38]} a6 {[%emt 0:00:16]} 11. a4 {[%emt 0:00:22]} h6 {[%emt 0:00:11]} 12. Qc1 {[%emt 0:07:27]} g5 {[%emt 0:01:32]} 13. Bd2 {[%emt 0:02:05]} Bf5 {[%emt 0:00:16]} 14. h4 {[%emt 0:02:00]} g4 {[%emt 0:00:11]} 15. Nh2 {[%emt 0:04:33]} Kh7 {[%emt 0:00:13]} 16. e4 {[%emt 0:02:51]} Bg6 {[%emt 0:02:07]} 17. Qd1 {[%emt 0:08:27]} h5 {[%emt 0:05:23]} 18. f3 {[%emt 0:01:33]} gxf3 {[%emt 0:01:10]} 19. Nxf3 {[%emt 0:01:42]} Kg8 {[%emt 0:05:22]} 20. Bg5 {[%emt 0:06:10]} Nbd7 {[%emt 0:12:20]} 21. e5 {[%emt 0:05:52]} Nxe5 {[%emt 0:11:49]} 22. Nxe5 {[%emt 0:00:07]} Rxe5 {[%emt 0:00:15]} 23. Bh3 {[%emt 0:05:38]} Rxg5 {[%emt 0:02:58]} 24. hxg5 {[%emt 0:01:05]} Nh7 {[%emt 0:11:25]} 25. Qd2 {[%emt 0:01:36]} Nxg5 {[%emt 0:06:44]} 26. Bf5 Be5 {[%emt 0:13:00]} 27. Kg2 {[%emt 0:00:58]} Kg7 {[%emt 0:02:59]} 28. Rae1 {[%emt 0:02:00]} Qf6 {[%emt 0:08:22]} 29. Bc2 {[%emt 0:17:58]} Qe7 {[%emt 0:00:39]} 30. Nd1 {[%emt 0:00:46]} Bxc2 {[%emt 0:09:58]} 31. Qxc2 {[%emt 0:00:06]} Qd7 {[%emt 0:00:22]} 32. Qf5 {[%emt 0:02:16]} Qxf5 {[%emt 0:00:09]} 33. Rxf5 {[%emt 0:00:05]} f6 {[%emt 0:00:37]} 34. Nc3 {[%emt 0:07:22]} b5 {[%emt 0:01:37]} 35. Rf2 {[%emt 0:03:04]} Rb8 {[%emt 0:03:13]} 36. axb5 {[%emt 0:00:30]} axb5 {[%emt 0:00:08]} 37. Ra1 {[%emt 0:00:07]} b4 {[%emt 0:00:28]} 38. Ra7+ {[%emt 0:00:35]} Kg6 {[%emt 0:00:11]} 39. Nd1 {[%emt 0:00:55]} Ne4 {[%emt 0:03:43]} 40. Re2 {[%emt 0:00:54]} f5 {[%emt 0:00:37]} 41. Nf2 {[%emt 0:41:20]} Nxf2 {[%emt 0:02:21]} 42. Kxf2 {[%emt 0:00:00]} c4 {[%emt 0:00:20]} 43. Rc7 {[%emt 0:00:00]} c3 {[%emt 0:02:08]} 44. bxc3 {[%emt 0:00:00]} bxc3 {[%emt 0:00:11]} 45. Kf3 {[%emt 0:00:00]} Rb5 {[%emt 0:01:17]} 46. Rxe5 {[%emt 0:00:00]} dxe5 {[%emt 0:00:11]} 47. d6 {[%emt 0:00:00]} Rd5 {[%emt 0:00:33]} 48. d7 {[%emt 0:00:00]} c2 {[%emt 0:01:42]} 49. Rxc2 {[%emt 0:00:00]} Rxd7 {[%emt 0:00:13]} 50. Rc8 {[%emt 0:00:00]} Rd3+ {[%emt 0:08:39]} 51. Kf2 {[%emt 0:00:00]} Rd7 {[%emt 0:05:12]} 52. Kf3 {[%emt 0:00:00]} Rg7 {[%emt 0:00:19]} 53. Re8 {[%emt 0:00:00]} Kf6 {[%emt 0:00:15]} 54. Rf8+ {[%emt 0:00:00]} Kg5 {[%emt 0:00:11]} 55. Re8 {[%emt 0:00:00]} e4+ {[%emt 0:00:19]} 56. Kf2 {[%emt 0:00:00]} h4 {[%emt 0:01:24]} 57. gxh4+ {[%emt 0:00:00]} Kf4 {[%emt 0:00:37]} 58. Rh8 {[%emt 0:00:00]} e3+ {[%emt 0:00:13]} 59. Ke2 {[%emt 0:00:00]} Rg2+ {[%emt 0:00:10]} 60. Kd3 {[%emt 0:00:00]} Rd2+ {[%emt 0:00:23]} 61. Kc3 {[%emt 0:00:00]} Rd7 {[%emt 0:00:21]} 62. Re8 {[%emt 0:00:00]} Kf3 {[%emt 0:00:12]} 63. h5 {[%emt 0:00:00]} e2 {[%emt 0:00:39]} 64. h6 {[%emt 0:00:04]} Kf2 {[%emt 0:00:18]} 65. h7 {[%emt 0:00:05]} Rxh7 {[%emt 0:00:09]} 0-1